Workbook

Sheet summary
B5: Input Parameters
B7: rhist | C7: Expected historical returns on the stocks
B8: rrf | C8: Risk-free rate of return
B9: ω | C9: Observed market portfolio (supply of assets)
B10: Σ | C10: Asset historical covariance matrix
B11: γ | C11: Parameter of the utility function (measures risk-aversion)
B12: U | C12: Utility function: U = rx - (γ/2) * (x Σ x)
B14: CAPM Problem
B16: Investor's problem | C16: Equilibrium prices
B17: maxx U(x) | C17: rCAPM: x = ω
B18: 1 * x = 1
B20: Estimated Output Values
B22: CAPM Equilibrium Values
B24: β | C24: Security beta coefficients | D24: β = Σω / ωΣω
B25: rmin | C25: Return on portfolio uncorrelated with market index | D25: rmin = rrf
B26: rMkt | C26: Return on market index portfolio | D26: rMkt = rmin + γ (ωΣω)
B27: rCAPM | C27: Returns derived from the CAPM model | D27: rCAPM = rmin + β x [rMkt - rmin]
B28: λ | C28: Security alpha coefficients | D28: λ = rhist - rCAPM
B30: Security Efficiency Measures
B32: Treynor | C32: T = (rhist - rmin) / β
B33: Sharpe | C33: S = (rhist - rmin) / σ
B34: Jensen | C34: J = λ / β
B36: Investors' Decision Problem
B38: Funds (in two-fund separation):
B39: xmin | C39: Σ-1 1 / A | D39: µ = B/A | E39: σ2 = 1/A
B40: xM | C40: Σ-1 r / B | D40: µ = C/B | E40: σ2 = C / B2
B42: A | C42: 1 Σ-1 1 | D42: C | E42: r Σ-1 r
B43: B | C43: 1 Σ-1 r | D43: D | E43: A*C - B*B
B45: Efficiency frontier | C45: σ2 = (1 + (Aμ-B)2 / D) / A
B47: CAPM Calculator Parameters
B49: Σ-1 | C49: Inverse covariance matrix
B51: Output Tabs
B53: input | C53: CAPM Inputs tab | D53: γ, rhist, Σ
B54: output | C54: CAPM output tab | D54: , rmin, rMtk, rCAPM
B55: investors | C55: Output for investors' problem (the solution is constructed for both the historical and CAPM returns) | D55: rhist, demand (x), xmin, xM, A, B, C, D, Efficiency frontier
B56: calc | C56: CAPM calculator fields | D56: Σ-1
B57: test | C57: CAPM tests
B58: charts | C58: Efficiency frontier, excess demand/supply, alphas, betas

Sheet yahoo
A2: EOAN
B3: =_xlfn.NUMBERVALUE(_xlfn.WEBSERVICE("http://finance.yahoo.com/d/quotes.csv?s=" & A2 & "&f=l1")) ->  | D3: =getGoogPrice(A2) -> t={};this.tick=function(a,c,b){var d=void 0!=b?b:(new Date).getTime();this.t[a]=[d,c];if(void 0==b)try{window.console.timeStamp("CSI/"+a)}catch(h){}};this.tick("start",null,a)}var a;if(window.performance)var d=(a=window.performance.timing)&&a.responseStart;var f=0
B6: 2017-01-01
B7: 2017-04-30 | H7: Column1 | I7: Column2 | J7: Column3
B8: MSFT

Sheet input
C2: CAPM Inputs | I2: Σ
B3: # | C3: gamma | D3: ticks | E3: historical returns | F3: volatility | G3: supply (mkt portfolio) | I3: A | J3: B | K3: C
B4: =IF(D4="", "", 1) -> 1 | C4: 1 | D4: A | E4: 0.02 | F4: 0.3 | G4: 0.25 | I4: 0.3 | J4: 0 | K4: 0
B5: =IF(D5="", "", B4+1) -> 2 | D5: B | E5: 0.1 | F5: 0.3 | G5: 0.5 | I5: 0 | J5: 0.3 | K5: 0
B6: =IF(D6="", "", B5+1) -> 3 | D6: C | E6: 0.05 | F6: 0.3 | G6: 0.25 | I6: 0 | J6: 0 | K6: 0.3

Sheet output
D2: CAPM Output | J2: Efficiency Measures
B3: # | C3: ticks | D3: CAPM returns | E3: CAPM min return | F3: CAPM market return | G3: CAPM beta | H3: CAPM alpha | J3: Treynor | K3: Sharpe | L3: Jensen
B4: =IF(C4="", "", 1) -> 1 | C4: A | D4: 0.125 | E4: 0.05 | F4: 0.1625 | G4: 0.6667 | H4: -0.105 | J4: -0.045 | K4: -0.0548 | L4: -0.1575
B5: =IF(C5="", "", B4+1) -> 2 | C5: B | D5: 0.2 | E5: 0.05 | F5: 0.1625 | G5: 1.3333 | H5: -0.1 | J5: 0.0375 | K5: 0.0913 | L5: -0.075
B6: =IF(C6="", "", B5+1) -> 3 | C6: C | D6: 0.125 | E6: 0.05 | F6: 0.1625 | G6: 0.6667 | H6: -0.075 | J6: 0 | K6: 0 | L6: -0.1125

Sheet investors
D1: CAPM returns | L1: Historical returns
E2: Asset Demand (based on CAPM returns) | I2: Market Frontier (based on CAPM returns) | M2: Asset Demand (based on historical returns) | Q2: Market Frontier (based on historical returns)
E3: μ | F3: =H8/H7 -> 0.15 | G3: =H9/H8 -> 0.1583333333 | M3: μ | N3: =P8/P7 -> 0.05667 | O3: =P9/P8 -> 0.07587788954
E4: σ2 | F4: =1/H7 -> 0.1 | G4: =H9/(H8*H8) -> 0.1055555556 | M4: σ2 | N4: =1/P7 -> 0.1 | O4: =P9/(P8*P8) -> 0.1338942819
F5: =SUM(F7:F100) -> 0.9999 | G5: =SUM(G7:G100) -> 1 | N5: =SUM(N7:N100) -> 0.9999 | O5: 0.9999
B6: # | C6: ticks | D6: returns | E6: demand | F6: fund-min | G6: fund-mkt | H6: A/B/C/D | I6: frontier-mu | J6: frontier-sigma^2 | L6: returns | M6: demand | N6: fund-min | O6: fund-mkt | P6: A/B/C/D | Q6: frontier-mu | R6: frontier-sigma^2
B7: =IF(C7="", "", 1) -> 1 | C7: A | D7: 0.125 | E7: 0.25 | F7: 0.3333 | G7: 0.2778 | H7: 10 | I7: 0.03 | J7: 1.252 | L7: 0.02 | M7: 0.2111 | N7: 0.3333 | O7: 0.1176 | P7: 10 | Q7: 0.0113 | R7: 0.2887
B8: =IF(C8="", "", B7+1) -> 2 | C8: B | D8: 0.2 | E8: 0.5 | F8: 0.3333 | G8: 0.4444 | H8: 1.5 | I8: 0.0372 | J8: 1.1187 | L8: 0.1 | M8: 0.4778 | N8: 0.3333 | O8: 0.5882 | P8: 0.5667 | Q8: 0.0191 | R8: 0.2294
B9: =IF(C9="", "", B8+1) -> 3 | C9: C | D9: 0.125 | E9: 0.25 | F9: 0.3333 | G9: 0.2778 | H9: 0.2375 | I9: 0.0443 | J9: 0.9936 | L9: 0.05 | M9: 0.3111 | N9: 0.3333 | O9: 0.2941 | P9: 0.043 | Q9: 0.0269 | R9: 0.1812
H10: 0.125 | I10: 0.0515 | J10: 0.8767 | P10: 0.1089 | Q10: 0.0347 | R10: 0.1442
I11: 0.0586 | J11: 0.768 | Q11: 0.0425 | R11: 0.1184
I12: 0.0658 | J12: 0.6675 | Q12: 0.0503 | R12: 0.1037
I13: 0.0729 | J13: 0.5752 | Q13: 0.0581 | R13: 0.1002
I14: 0.0801 | J14: 0.491 | Q14: 0.0659 | R14: 0.1079
I15: 0.0872 | J15: 0.4151 | Q15: 0.0737 | R15: 0.1267
I16: 0.0944 | J16: 0.3473 | Q16: 0.0815 | R16: 0.1567
I17: 0.1016 | J17: 0.2878 | Q17: 0.0893 | R17: 0.1979
I18: 0.1087 | J18: 0.2364 | Q18: 0.0971 | R18: 0.2503
I19: 0.1159 | J19: 0.1932 | Q19: 0.1049 | R19: 0.3138
I20: 0.123 | J20: 0.1582 | Q20: 0.1127 | R20: 0.3885
I21: 0.1302 | J21: 0.1315 | Q21: 0.1205 | R21: 0.4744
I22: 0.1373 | J22: 0.1128 | Q22: 0.1283 | R22: 0.5715
I23: 0.1445 | J23: 0.1024 | Q23: 0.1361 | R23: 0.6797
I24: 0.1516 | J24: 0.1002 | Q24: 0.1439 | R24: 0.7991
I25: 0.1588 | J25: 0.1062 | Q25: 0.1517 | R25: 0.9296
I26: 0.1659 | J26: 0.1203 | Q26: 0.1595 | R26: 1.0714
I27: 0.1731 | J27: 0.1427 | Q27: 0.1673 | R27: 1.2243
I28: 0.1803 | J28: 0.1732 | Q28: 0.1751 | R28: 1.3883
I29: 0.1874 | J29: 0.212 | Q29: 0.1829 | R29: 1.5636
I30: 0.1946 | J30: 0.2589 | Q30: 0.1907 | R30: 1.75
I31: 0.2017 | J31: 0.314 | Q31: 0.1985 | R31: 1.9476
I32: 0.2089 | J32: 0.3773 | Q32: 0.2063 | R32: 2.1564
I33: 0.216 | J33: 0.4488 | Q33: 0.2141 | R33: 2.3763
I34: 0.2232 | J34: 0.5285 | Q34: 0.2219 | R34: 2.6074
I35: 0.2303 | J35: 0.6164 | Q35: 0.2297 | R35: 2.8497
I36: 0.2375 | J36: 0.7125 | Q36: 0.2375 | R36: 3.1031

Sheet calc
C1: CAPM Calculator Parameters
D2: Σ-1
B3: # | C3: ticks | D3: A | E3: B | F3: C
B4: =IF(C4="", "", 1) -> 1 | C4: A | D4: 3.3333 | E4: 0 | F4: 0
B5: =IF(C5="", "", B4+1) -> 2 | C5: B | D5: 0 | E5: 3.3333 | F5: 0
B6: =IF(C6="", "", B5+1) -> 3 | C6: C | D6: 0 | E6: 0 | F6: 3.3333

Sheet charts
B2: Efficiency Frontier (CAPM returns) | G2: Excess Demand / Supply
B20: Security Efficiency Measures | G20: Returns and Alpha Parameters

Sheet test
G2: 1 | H2: =G2+1 -> 2 | I2: =H2+1 -> 3
B3: # | C3: tick | D3: CAPM return | E3: CAPM return (test) | G3: =calc!D3 -> A | H3: =calc!E3 -> B | I3: =calc!F3 -> C
B4: =IF(output!B4="", "", output!B4) -> 1 | C4: =IF(output!C4="", "", output!C4) -> A | D4: =IF(B4="", "", output!D4) -> 0.125 | E4: =IF(B4="", "", output!E4 + output!G4*(output!F4 - output!E4)) -> 0.12500375 | G4: =IF(OR($B4="", G$2=""), "", SUMPRODUCT(OFFSET(input!$H$4:$H$100, 0, $B4), OFFSET(calc!$C$4:$C$100, 0, G$2))) -> 0.99999 | H4: =IF(OR($B4="", H$2=""), "", SUMPRODUCT(OFFSET(input!$H$4:$H$100, 0, $B4), OFFSET(calc!$C$4:$C$100, 0, H$2))) -> 0 | I4: =IF(OR($B4="", I$2=""), "", SUMPRODUCT(OFFSET(input!$H$4:$H$100, 0, $B4), OFFSET(calc!$C$4:$C$100, 0, I$2))) -> 0 | J4: =IF(OR($B4="", J$2=""), "", SUMPRODUCT(OFFSET(input!$H$4:$H$100, 0, $B4), OFFSET(calc!$C$4:$C$100, 0, J$2))) ->  | K4: =IF(OR($B4="", K$2=""), "", SUMPRODUCT(OFFSET(input!$H$4:$H$100, 0, $B4), OFFSET(calc!$C$4:$C$100, 0, K$2))) -> 
B5: =IF(output!B5="", "", output!B5) -> 2 | C5: =IF(output!C5="", "", output!C5) -> B | D5: =IF(B5="", "", output!D5) -> 0.2 | E5: =IF(B5="", "", output!E5 + output!G5*(output!F5 - output!E5)) -> 0.19999625 | G5: =IF(OR($B5="", G$2=""), "", SUMPRODUCT(OFFSET(input!$H$4:$H$100, 0, $B5), OFFSET(calc!$C$4:$C$100, 0, G$2))) -> 0 | H5: =IF(OR($B5="", H$2=""), "", SUMPRODUCT(OFFSET(input!$H$4:$H$100, 0, $B5), OFFSET(calc!$C$4:$C$100, 0, H$2))) -> 0.99999 | I5: =IF(OR($B5="", I$2=""), "", SUMPRODUCT(OFFSET(input!$H$4:$H$100, 0, $B5), OFFSET(calc!$C$4:$C$100, 0, I$2))) -> 0 | J5: =IF(OR($B5="", J$2=""), "", SUMPRODUCT(OFFSET(input!$H$4:$H$100, 0, $B5), OFFSET(calc!$C$4:$C$100, 0, J$2))) ->  | K5: =IF(OR($B5="", K$2=""), "", SUMPRODUCT(OFFSET(input!$H$4:$H$100, 0, $B5), OFFSET(calc!$C$4:$C$100, 0, K$2))) -> 
B6: =IF(output!B6="", "", output!B6) -> 3 | C6: =IF(output!C6="", "", output!C6) -> C | D6: =IF(B6="", "", output!D6) -> 0.125 | E6: =IF(B6="", "", output!E6 + output!G6*(output!F6 - output!E6)) -> 0.12500375 | G6: =IF(OR($B6="", G$2=""), "", SUMPRODUCT(OFFSET(input!$H$4:$H$100, 0, $B6), OFFSET(calc!$C$4:$C$100, 0, G$2))) -> 0 | H6: =IF(OR($B6="", H$2=""), "", SUMPRODUCT(OFFSET(input!$H$4:$H$100, 0, $B6), OFFSET(calc!$C$4:$C$100, 0, H$2))) -> 0 | I6: =IF(OR($B6="", I$2=""), "", SUMPRODUCT(OFFSET(input!$H$4:$H$100, 0, $B6), OFFSET(calc!$C$4:$C$100, 0, I$2))) -> 0.99999 | J6: =IF(OR($B6="", J$2=""), "", SUMPRODUCT(OFFSET(input!$H$4:$H$100, 0, $B6), OFFSET(calc!$C$4:$C$100, 0, J$2))) ->  | K6: =IF(OR($B6="", K$2=""), "", SUMPRODUCT(OFFSET(input!$H$4:$H$100, 0, $B6), OFFSET(calc!$C$4:$C$100, 0, K$2))) -> 
B7: =IF(output!B7="", "", output!B7) ->  | C7: =IF(output!C7="", "", output!C7) ->  | D7: =IF(B7="", "", output!D7) ->  | E7: =IF(B7="", "", output!E7 + output!G7*(output!F7 - output!E7)) ->  | G7: =IF(OR($B7="", G$2=""), "", SUMPRODUCT(OFFSET(input!$H$4:$H$100, 0, $B7), OFFSET(calc!$C$4:$C$100, 0, G$2))) ->  | H7: =IF(OR($B7="", H$2=""), "", SUMPRODUCT(OFFSET(input!$H$4:$H$100, 0, $B7), OFFSET(calc!$C$4:$C$100, 0, H$2))) ->  | I7: =IF(OR($B7="", I$2=""), "", SUMPRODUCT(OFFSET(input!$H$4:$H$100, 0, $B7), OFFSET(calc!$C$4:$C$100, 0, I$2))) ->  | J7: =IF(OR($B7="", J$2=""), "", SUMPRODUCT(OFFSET(input!$H$4:$H$100, 0, $B7), OFFSET(calc!$C$4:$C$100, 0, J$2))) ->  | K7: =IF(OR($B7="", K$2=""), "", SUMPRODUCT(OFFSET(input!$H$4:$H$100, 0, $B7), OFFSET(calc!$C$4:$C$100, 0, K$2))) -> 
B8: =IF(output!B8="", "", output!B8) ->  | C8: =IF(output!C8="", "", output!C8) ->  | D8: =IF(B8="", "", output!D8) ->  | E8: =IF(B8="", "", output!E8 + output!G8*(output!F8 - output!E8)) ->  | G8: =IF(OR($B8="", G$2=""), "", SUMPRODUCT(OFFSET(input!$H$4:$H$100, 0, $B8), OFFSET(calc!$C$4:$C$100, 0, G$2))) ->  | H8: =IF(OR($B8="", H$2=""), "", SUMPRODUCT(OFFSET(input!$H$4:$H$100, 0, $B8), OFFSET(calc!$C$4:$C$100, 0, H$2))) ->  | I8: =IF(OR($B8="", I$2=""), "", SUMPRODUCT(OFFSET(input!$H$4:$H$100, 0, $B8), OFFSET(calc!$C$4:$C$100, 0, I$2))) ->  | J8: =IF(OR($B8="", J$2=""), "", SUMPRODUCT(OFFSET(input!$H$4:$H$100, 0, $B8), OFFSET(calc!$C$4:$C$100, 0, J$2))) ->  | K8: =IF(OR($B8="", K$2=""), "", SUMPRODUCT(OFFSET(input!$H$4:$H$100, 0, $B8), OFFSET(calc!$C$4:$C$100, 0, K$2))) -> 
B9: =IF(output!B9="", "", output!B9) ->  | C9: =IF(output!C9="", "", output!C9) ->  | D9: =IF(B9="", "", output!D9) ->  | E9: =IF(B9="", "", output!E9 + output!G9*(output!F9 - output!E9)) -> 
B10: =IF(output!B10="", "", output!B10) ->  | C10: =IF(output!C10="", "", output!C10) ->  | D10: =IF(B10="", "", output!D10) ->  | E10: =IF(B10="", "", output!E10 + output!G10*(output!F10 - output!E10)) -> 
B11: =IF(output!B11="", "", output!B11) ->  | C11: =IF(output!C11="", "", output!C11) ->  | D11: =IF(B11="", "", output!D11) ->  | E11: =IF(B11="", "", output!E11 + output!G11*(output!F11 - output!E11)) -> 
B12: =IF(output!B12="", "", output!B12) ->  | C12: =IF(output!C12="", "", output!C12) ->  | D12: =IF(B12="", "", output!D12) ->  | E12: =IF(B12="", "", output!E12 + output!G12*(output!F12 - output!E12)) -> 
B13: =IF(output!B13="", "", output!B13) ->  | C13: =IF(output!C13="", "", output!C13) ->  | D13: =IF(B13="", "", output!D13) ->  | E13: =IF(B13="", "", output!E13 + output!G13*(output!F13 - output!E13)) -> 
B14: =IF(output!B14="", "", output!B14) ->  | C14: =IF(output!C14="", "", output!C14) ->  | D14: =IF(B14="", "", output!D14) ->  | E14: =IF(B14="", "", output!E14 + output!G14*(output!F14 - output!E14)) -> 
D15: =IF(B15="", "", output!D15) ->  | E15: =IF(B15="", "", output!E15 + output!G15*(output!F15 - output!E15)) -> 
D16: =IF(B16="", "", output!D16) ->  | E16: =IF(B16="", "", output!E16 + output!G16*(output!F16 - output!E16)) -> 
D17: =IF(B17="", "", output!D17) ->  | E17: =IF(B17="", "", output!E17 + output!G17*(output!F17 - output!E17)) -> 
D18: =IF(B18="", "", output!D18) ->  | E18: =IF(B18="", "", output!E18 + output!G18*(output!F18 - output!E18)) -> 
D19: =IF(B19="", "", output!D19) ->  | E19: =IF(B19="", "", output!E19 + output!G19*(output!F19 - output!E19)) -> 
D20: =IF(B20="", "", output!D20) ->  | E20: =IF(B20="", "", output!E20 + output!G20*(output!F20 - output!E20)) -> 
D21: =IF(B21="", "", output!D21) ->  | E21: =IF(B21="", "", output!E21 + output!G21*(output!F21 - output!E21)) -> 
D22: =IF(B22="", "", output!D22) ->  | E22: =IF(B22="", "", output!E22 + output!G22*(output!F22 - output!E22)) -> 
D23: =IF(B23="", "", output!D23) ->  | E23: =IF(B23="", "", output!E23 + output!G23*(output!F23 - output!E23)) -> 
D24: =IF(B24="", "", output!D24) ->  | E24: =IF(B24="", "", output!E24 + output!G24*(output!F24 - output!E24)) -> 
D25: =IF(B25="", "", output!D25) ->  | E25: =IF(B25="", "", output!E25 + output!G25*(output!F25 - output!E25)) -> 
D26: =IF(B26="", "", output!D26) ->  | E26: =IF(B26="", "", output!E26 + output!G26*(output!F26 - output!E26)) -> 
D27: =IF(B27="", "", output!D27) ->  | E27: =IF(B27="", "", output!E27 + output!G27*(output!F27 - output!E27)) -> 
D28: =IF(B28="", "", output!D28) ->  | E28: =IF(B28="", "", output!E28 + output!G28*(output!F28 - output!E28)) -> 
D29: =IF(B29="", "", output!D29) ->  | E29: =IF(B29="", "", output!E29 + output!G29*(output!F29 - output!E29)) -> 
